bitfinex-derivatives/quotes_SOLF0:USTF0_20230105
["timestamp","ask_amount","ask_price","bid_price","bid_amount"]
[1672938758605,22.8,13.182,13.173,32.8]
[1672938758811,10.0,13.181,13.173,32.8]
[1672938759237,22.86870289,13.182,13.173,32.8]
[1672938759446,0.06870289,13.182,13.177,22.8]
[1672938759651,0.06870289,13.182,13.178,10.0]
[1672938760601,22.8,13.185,13.178,10.0]
[1672938761230,22.8,13.187,13.178,32.8]
[1672938761441,571.0,13.188,13.18,22.8]
[1672938761643,571.0,13.188,13.181,10.0]
[1672938765434,10.0,13.187,13.18,64.839]
[1672938766379,571.0,13.188,13.18,64.839]
[1672938766800,571.0,13.188,13.181,10.0]
[1672938771534,571.0,13.188,13.183,22.8]
[1672938771736,0.06081317,13.189,13.184,10.0]
[1672938772477,0.00081317,13.189,13.184,10.0]
[1672938772688,22.8,13.191,13.184,10.0]
[1672938773104,10.0,13.19,13.184,10.0]
[1672938774682,22.8,13.191,13.184,10.0]
[1672938774890,0.06815588,13.192,13.184,32.8]
[1672938781307,10.06815588,13.192,13.184,32.8]
[1672938781520,22.8,13.191,13.182,22.86483229]
[1672938781833,10.0,13.19,13.182,22.86483229]
[1672938782043,10.0,13.19,13.183,10.0]
[1672938783097,10.0,13.19,13.182,22.86483229]
[1672938783309,22.8,13.188,13.182,0.06483229]
[1672938783619,10.0,13.187,13.182,0.06483229]
[1672938785407,22.8,13.188,13.182,0.06483229]
[1672938787611,10.0,13.187,13.182,0.06483229]
[1672938787822,22.8,13.186,13.182,0.06483229]
[1672938788031,10.0,13.185,13.182,0.06483229]
[1672938788241,10.0,13.185,13.18,42.039]
[1672938790027,22.8,13.186,13.18,42.039]
[1672938791182,22.8,13.186,13.181,10.0]
[1672938793391,22.8,13.186,13.18,42.039]
[1672938801481,22.8,13.186,13.181,10.0]
[1672938802845,22.8,13.188,13.181,10.0]
[1672938803058,10.0,13.187,13.181,10.0]
[1672938805679,22.8,13.188,13.181,10.0]
[1672938814308,22.8,13.188,13.18,64.689]
[1672938815782,22.8,13.188,13.181,10.0]
[1672938837945,0.06869116,13.189,13.182,22.77]
[1672938838161,0.06869116,13.189,13.183,10.0]
[1672938840998,0.00069116,13.189,13.183,10.0]
[1672938846875,22.8,13.193,13.184,22.65]
[1672938847091,571.0,13.195,13.187,22.65]
[1672938847510,571.0,13.195,13.188,10.0]
[1672938854659,571.0,13.195,13.189,22.77]
[1672938854869,0.0643693,13.196,13.19,10.0]
[1672938856233,0.0003693,13.196,13.19,32.65]
[1672938857392,0.0003693,13.196,13.188,32.77]
[1672938858019,10.0003693,13.196,13.188,32.77]
[1672938858230,10.0003693,13.196,13.188,22.77]
[1672938864743,22.8,13.197,13.188,22.77]
[1672938864960,22.8,13.197,13.189,10.0]
[1672938866324,10.0,13.196,13.189,10.0]
[1672938867903,22.8,13.195,13.189,10.0]
[1672938868107,10.0,13.194,13.187,32.86123101]
[1672938872005,10.0,13.194,13.187,22.86123101]
[1672938876529,22.86534805,13.195,13.187,22.86123101]
[1672938878104,22.8,13.194,13.187,0.06123101]
[1672938878315,10.0,13.193,13.187,0.06123101]
[1672938878839,22.8,13.194,13.187,10.06123101]
[1672938889864,22.73,13.193,13.187,32.60123101]
[1672938890083,22.665,13.193,13.187,32.60123101]
[1672938891235,0.06534805,13.195,13.19,22.73]
[1672938891446,0.06534805,13.195,13.191,10.0]
[1672938892071,0.00034805,13.195,13.191,10.0]
[1672938894386,10.0,13.193,13.188,32.73]
[1672938895007,22.73,13.194,13.188,32.73]
[1672938901533,22.73,13.189,13.187,0.06123101]
[1672938901740,10.0,13.188,13.183,22.60114706]
[1672938903428,22.73,13.189,13.183,22.60114706]
[1672938907840,0.06869258,13.19,13.183,0.07114706]
[1672938908261,10.06869258,13.19,13.183,0.07114706]
[1672938908468,0.06869258,13.19,13.183,10.07114706]
[1672938915310,10.06869258,13.19,13.183,0.07114706]
[1672938927928,22.74,13.189,13.183,0.07114706]
[1672938928137,10.0,13.188,13.183,0.07114706]
[1672938930869,22.74,13.184,13.174,22.74]
[1672938931079,10.0,13.183,13.175,10.0]
[1672938935914,10.0,13.183,13.174,32.80045547]
[1672938938963,10.0,13.183,13.174,22.80045547]
[1672938939384,47.942,13.183,13.174,22.80045547]
[1672938939806,22.69,13.179,13.174,0.06045547]
[1672938940019,22.74,13.176,13.174,0.06045547]
[1672938940227,10.0,13.175,13.17,0.06142329]
[1672938940433,10.0,13.175,13.168,10.06229091]
[1672938942120,10.0,13.175,13.168,0.06229091]
[1672938947476,22.74,13.174,13.168,0.06229091]
[1672938947688,10.0,13.173,13.168,0.06229091]
[1672938951163,22.74,13.171,13.168,0.06229091]
[1672938951362,10.0,13.17,13.165,0.07112419]
[1672938951786,32.69,13.173,13.165,22.81112419]
[1672938951996,32.69,13.173,13.166,10.0]
[1672938952313,10.0,13.173,13.166,32.55]
[1672938955572,32.54,13.173,13.166,10.0]
[1672938957147,22.54,13.173,13.166,10.0]
[1672938964290,0.06323705,13.174,13.167,22.74]
[1672938964508,0.06323705,13.174,13.169,22.55]
[1672938964819,0.06323705,13.174,13.17,10.0]
[1672938965029,0.00023705,13.174,13.17,10.0]
[1672938980483,0.00023705,13.174,13.168,32.74]
[1672938980693,22.74023705,13.174,13.168,10.0]
[1672938983734,22.74023705,13.174,13.167,43.5908]
[1672939000444,22.74023705,13.174,13.168,10.0]
[1672939011902,0.00023705,13.174,13.169,22.74]
[1672939012114,0.00023705,13.174,13.17,10.0]
[1672939022625,0.00023705,13.174,13.168,10.0]
[1672939026200,0.00023705,13.174,13.168,32.74]
[1672939043323,0.00023705,13.174,13.169,22.79]
[1672939043534,0.00023705,13.174,13.17,10.0]
[1672939057934,0.00023705,13.174,13.17,32.71]
[1672939077909,0.00023705,13.174,13.171,22.71]
[1672939078107,22.64852332,13.177,13.172,10.0]
[1672939078739,0.06852332,13.177,13.173,22.66]
[1672939078953,0.06852332,13.177,13.174,10.0]
[1672939079167,593.79,13.18,13.174,10.0]
[1672939079377,22.79,13.18,13.174,10.0]
[1672939082323,22.79,13.179,13.174,10.0]
[1672939088630,22.79,13.179,13.173,22.79]
[1672939097882,22.79,13.178,13.172,32.77427146]
[1672939099566,22.79,13.178,13.172,22.77427146]
[1672939102192,10.0,13.177,13.172,22.77427146]
[1672939102409,22.79,13.173,13.172,0.06427146]
[1672939102618,22.79,13.173,13.168,0.06222022]
[1672939102934,22.58,13.171,13.166,10.0659871]
[1672939106713,22.58,13.171,13.166,0.0659871]
[1672939108606,10.0,13.17,13.166,0.0659871]
[1672939109445,22.79,13.168,13.166,0.0659871]
[1672939109656,10.0,13.167,13.162,68.57404411]
[1672939111441,10.0,13.167,13.162,22.66694411]
[1672939120476,10.0,13.167,13.162,0.06694411]
[1672939120477,22.79,13.164,13.162,0.06694411]
[1672939120689,10.0,13.163,13.158,0.06592447]
[1672939123213,22.71,13.162,13.158,0.06592447]
[1672939123528,22.58,13.159,13.15,22.62]
[1672939123740,22.79,13.157,13.151,10.0]
[1672939124053,10.0,13.156,13.151,10.0]
[1672939124265,10.0,13.156,13.15,22.62]
[1672939129202,10.0,13.156,13.149,22.77]
[1672939129413,10.0,13.156,13.15,10.0]
[1672939129727,10.0,13.156,13.149,22.77]
[1672939132148,32.86,13.156,13.148,0.06965536]
[1672939135404,22.66,13.154,13.148,0.06965536]
[1672939135612,10.0,13.153,13.148,0.06965536]
[1672939136029,10.0,13.153,13.148,0.00965536]
[1672939136243,10.0,13.153,13.143,42.5959]
[1672939136244,10.0,13.148,13.137,22.86]
[1672939136454,22.74,13.146,13.137,22.86]
[1672939136658,10.0,13.145,13.138,10.0]
[1672939137402,32.72,13.145,13.138,10.0]
[1672939137714,22.72,13.145,13.138,10.0]
[1672939139073,10.0,13.144,13.138,10.0]
[1672939140128,22.92984228,13.146,13.138,10.0]
[1672939140339,0.06984228,13.146,13.14,10.0]
[1672939143597,0.06984228,13.146,13.139,22.68]
[1672939144016,22.80984228,13.146,13.138,32.77]
[1672939146227,10.0,13.145,13.138,32.77]
[1672939147592,10.0,13.145,13.138,22.77]
[1672939149073,22.80984228,13.146,13.139,10.0]
[1672939150640,0.06984228,13.146,13.14,22.77]
[1672939150849,0.06984228,13.146,13.141,10.0]
[1672939151061,0.06984228,13.146,13.139,10.0]
[1672939151271,0.06984228,13.146,13.138,22.68]
[1672939152324,0.06984228,13.146,13.139,10.0]
[1672939155053,10.06984228,13.146,13.139,10.0]
[1672939157159,10.06984228,13.146,13.138,22.68]
[1672939157369,22.66,13.145,13.137,68.1790396]
[1672939157580,10.0,13.144,13.137,68.1790396]
[1672939163055,22.66,13.145,13.137,68.1790396]
[1672939163579,10.0,13.144,13.137,68.1790396]
[1672939165682,10.0,13.144,13.137,22.9230396]
[1672939165892,22.86,13.143,13.137,0.0630396]
[1672939166099,22.72,13.141,13.137,0.0630396]
[1672939166314,22.66,13.138,13.129,22.86]
[1672939166523,10.0,13.137,13.13,10.0]
[1672939167572,0.06214838,13.138,13.131,22.86]
[1672939167782,0.06214838,13.138,13.132,10.0]
[1672939169354,0.06214838,13.138,13.131,22.86]
[1672939170613,10.06214838,13.138,13.131,22.86]
[1672939171036,10.06214838,13.138,13.129,43.69245509]
[1672939171253,70.85614838,13.138,13.129,66.55245509]
[1672939171453,22.86,13.136,13.129,43.69245509]
[1672939172093,10.0,13.135,13.129,43.69245509]
[1672939172936,10.0,13.135,13.129,0.06855509]
[1672939174825,22.86,13.136,13.129,0.06855509]
[1672939180083,10.0,13.135,13.129,0.06855509]
[1672939181133,10.0,13.131,13.129,0.06855509]
[1672939181343,10.0,13.131,13.128,0.1]
[1672939183025,32.66,13.131,13.128,0.1]
[1672939183338,22.66,13.131,13.128,0.1]
[1672939184392,10.0,13.13,13.128,0.1]
[1672939185549,10.0,13.13,13.125,0.06631285]
[1672939185763,22.66,13.126,13.125,0.00631285]
[1672939185974,22.66,13.126,13.117,10.0]
[1672939186284,10.0,13.125,13.117,10.0]
[1672939186500,22.86,13.121,13.113,10.0]
[1672939186812,22.86,13.121,13.115,10.0]
[1672939187024,10.0,13.12,13.115,10.0]
[1672939187444,10.0,13.12,13.116,2.79986794]
[1672939187655,22.86,13.121,13.116,2.79986794]
[1672939188494,0.07055545,13.122,13.117,22.77]
[1672939188705,0.07055545,13.122,13.118,10.0]
[1672939188917,0.07055545,13.122,13.118,12.79986794]
[1672939189335,0.07055545,13.122,13.119,2.79986794]
[1672939189546,10.06655121,13.125,13.119,2.79986794]
[1672939189751,10.06655121,13.125,13.118,10.0]
[1672939191229,0.06655121,13.125,13.118,10.0]
[1672939191967,22.74,13.121,13.115,0.06386467]
[1672939196066,22.66,13.117,13.115,0.06386467]
[1672939196381,10.0,13.116,13.114,2.80012745]
[1672939196803,10.0,13.116,13.11,2.80012745]
[1672939197319,22.86,13.115,13.11,2.80012745]
[1672939197535,22.66,13.114,13.11,2.80012745]
[1672939197745,10.0,13.113,13.108,0.06343234]
[1672939198900,22.72,13.111,13.108,0.06343234]
[1672939199111,10.0,13.11,13.107,2.80012745]
[1672939199639,10.0,13.11,13.105,2.86174776]
[1672939200262,22.72,13.111,13.105,2.86174776]
[1672939200683,0.06243246,13.112,13.109,22.86]
[1672939200897,0.06233562,13.115,13.11,10.0]
[1672939201109,0.06233562,13.115,13.11,12.80012745]
[1672939201316,22.66,13.12,13.111,22.86]
[1672939201636,10.0,13.125,13.117,22.77]
[1672939203000,10.0,13.125,13.118,10.0]
[1672939205619,10.0,13.125,13.117,22.77]
[1672939207721,22.66,13.122,13.116,0.06274638]
[1672939208040,10.0,13.12,13.116,0.06274638]
[1672939214871,10.0,13.12,13.111,74.5235]
[1672939215921,10.06304677,13.12,13.111,74.58547512]
[1672939217708,30.22,13.118,13.111,44.47547512]
[1672939217917,30.22,13.118,13.111,0.06197512]
[1672939218129,10.0,13.117,13.111,0.06197512]
[1672939219493,10.06304677,13.12,13.111,0.06197512]
[1672939219703,10.06304677,13.12,13.111,10.06197512]
[1672939220434,10.06304677,13.12,13.111,0.06197512]
[1672939221382,0.06304677,13.12,13.111,10.06197512]
[1672939221598,0.06304677,13.12,13.114,30.09]
[1672939221801,0.06304677,13.12,13.111,60.06197512]
[1672939221802,0.06304677,13.12,13.115,30.29]
[1672939222012,0.06304677,13.12,13.116,10.0]
[1672939222331,10.0,13.125,13.116,10.0]
[1672939222856,10.0,13.125,13.116,51.7406]
[1672939223268,0.06544937,13.125,13.118,30.29]
[1672939223800,0.06544937,13.125,13.119,10.0]
[1672939227685,0.06544937,13.125,13.117,10.0]
[1672939228316,30.39,13.124,13.116,51.80886356]
[1672939228532,10.0,13.123,13.116,51.80886356]
[1672939229790,10.0,13.123,13.116,0.06826356]
[1672939230108,10.0,13.119,13.116,0.06826356]
[1672939230318,10.0,13.119,13.113,0.0698444]
[1672939234630,30.28744664,13.122,13.113,0.0698444]
[1672939234840,10.0,13.121,13.113,0.0698444]
[1672939235257,48.122,13.121,13.113,0.0698444]
[1672939236102,10.0,13.121,13.113,0.0698444]
[1672939236313,30.28744664,13.122,13.113,0.0698444]
[1672939236518,0.06744664,13.122,13.113,30.3598444]
[1672939236939,0.06744664,13.122,13.114,10.0]
[1672939237148,0.06744664,13.122,13.115,30.39]
[1672939237358,0.06744664,13.122,13.116,10.0]
[1672939237570,0.06744664,13.122,13.116,56.0995]
[1672939239567,0.06744664,13.122,13.118,10.0]
[1672939242199,0.00044664,13.122,13.118,10.0]
[1672939243991,0.00044664,13.122,13.118,40.39]
[1672939244295,10.0,13.13,13.122,10.0]
[1672939245459,40.22082695,13.131,13.122,10.0]
[1672939246927,30.22,13.129,13.122,10.0]
[1672939247138,10.0,13.128,13.122,10.0]
[1672939248715,40.22,13.129,13.122,10.0]
[1672939249449,10.0,13.128,13.121,0.06115127]
[1672939251026,40.22,13.129,13.121,0.06115127]
[1672939253336,10.0,13.128,13.121,0.06115127]
[1672939256912,30.22,13.127,13.121,0.06115127]
[1672939257122,10.0,13.126,13.121,0.06115127]
[1672939258910,30.22,13.127,13.121,0.06115127]
[1672939262901,0.06244059,13.128,13.121,0.06115127]
[1672939274786,10.06244059,13.128,13.121,0.06115127]
[1672939277623,0.06244059,13.128,13.121,0.06115127]
[1672939281949,10.06244059,13.128,13.121,0.06115127]
[1672939282787,0.06244059,13.128,13.121,0.06115127]
[1672939288975,0.06244059,13.128,13.121,10.06115127]
[1672939290450,0.06244059,13.128,13.121,0.06115127]
[1672939291496,0.06244059,13.128,13.121,10.06115127]
[1672939292655,571.0,13.133,13.126,30.09]
[1672939293068,571.0,13.133,13.127,10.0]
[1672939293278,30.39,13.137,13.127,10.0]
[1672939293706,30.45885969,13.137,13.127,10.06927037]
[1672939294131,10.0,13.136,13.127,10.06927037]
[1672939297914,40.45885969,13.137,13.127,55.16977037]
[1672939298118,30.45885969,13.137,13.127,55.16977037]
[1672939299064,22.93,13.136,13.127,78.09977037]
[1672939299281,10.0,13.135,13.127,78.09977037]
[1672939301905,22.93,13.136,13.127,78.09977037]
[1672939302223,10.06885969,13.137,13.129,22.93]
[1672939302436,10.06885969,13.137,13.13,10.0]
[1672939304221,0.06885969,13.137,13.13,10.0]
[1672939305167,0.06885969,13.137,13.131,22.93]
[1672939305378,0.06885969,13.137,13.132,10.0]
[1672939306740,0.06885969,13.137,13.131,22.93]
[1672939307368,0.06885969,13.137,13.13,10.07015014]
[1672939307369,22.76,13.136,13.13,0.07015014]
[1672939307585,22.89,13.131,13.122,22.93]
[1672939308109,10.0,13.13,13.123,10.0]
[1672939310312,22.95382425,13.131,13.123,10.0]
[1672939311789,0.06382425,13.131,13.125,22.81]
[1672939312001,0.06382425,13.131,13.126,10.0]
[1672939312318,0.06382425,13.131,13.126,32.78]
[1672939316518,0.06382425,13.131,13.126,10.0]
[1672939316725,0.06382425,13.131,13.125,22.81]
[1672939316932,22.93,13.13,13.122,0.06220903]
[1672939317144,10.0,13.129,13.122,0.06220903]
[1672939318087,22.93,13.13,13.122,0.06220903]
[1672939320195,0.06382425,13.131,13.125,22.78]
[1672939320398,0.06382425,13.131,13.126,10.0]
[1672939321139,0.06382425,13.131,13.126,32.81]
[1672939322930,0.00082425,13.131,13.126,32.81]
[1672939340592,22.93,13.139,13.13,22.87]
[1672939340801,22.93,13.139,13.131,10.0]
[1672939344061,10.0,13.138,13.13,22.93057879]
[1672939344267,22.89,13.137,13.13,0.06057879]
[1672939345531,10.0,13.136,13.13,0.06057879]
[1672939347112,22.89,13.137,13.13,0.06057879]
[1672939350478,32.93,13.139,13.13,22.99057879]
[1672939350683,0.06022155,13.14,13.132,22.93]
[1672939350892,0.06022155,13.14,13.133,10.0]
[1672939354570,0.06022155,13.14,13.135,22.78]
[1672939354787,0.06022155,13.14,13.136,10.0]
[1672939355305,0.00022155,13.14,13.136,10.0]
[1672939356252,0.00022155,13.14,13.138,10.0]
[1672939356458,0.06586628,13.144,13.138,10.0]
[1672939358991,0.06586628,13.144,13.139,22.81]
[1672939359203,0.06586628,13.144,13.14,10.0]
[1672939360248,571.0,13.148,13.141,22.78]
[1672939360568,571.0,13.148,13.143,22.93]
[1672939360775,22.93,13.152,13.144,10.0]
[1672939362771,10.0,13.151,13.144,10.0]
[1672939365188,22.93,13.152,13.144,10.0]
[1672939366241,22.99709925,13.153,13.144,32.78]
[1672939366451,22.99709925,13.153,13.144,74.3472]
[1672939369077,10.0,13.152,13.144,74.3472]
[1672939370131,32.93,13.152,13.144,41.5672]
[1672939370340,22.93,13.15,13.144,41.5672]
[1672939370654,10.0,13.149,13.144,41.5672]
[1672939371290,22.93,13.15,13.144,41.5672]
[1672939371488,0.06709925,13.153,13.146,22.93]
[1672939371705,0.06709925,13.153,13.148,22.93]
[1672939372019,0.06709925,13.153,13.149,10.0]
[1672939373600,32.76,13.158,13.149,32.93]
[1672939374652,32.82908744,13.158,13.149,32.99918088]
[1672939375596,22.93,13.156,13.149,10.06918088]
[1672939375914,10.0,13.155,13.149,0.06918088]
[1672939377279,22.93,13.153,13.149,0.06918088]
[1672939377489,10.0,13.152,13.149,0.06918088]
[1672939377802,10.0,13.152,13.146,0.06607364]
[1672939379801,10.0,13.15,13.146,0.06607364]
[1672939381795,22.93,13.151,13.146,0.06607364]
[1672939382210,10.0,13.15,13.146,0.06607364]
[1672939383686,32.93,13.15,13.146,0.06607364]
[1672939384211,22.76,13.147,13.136,22.93]
[1672939384419,22.76,13.147,13.131,50.0]
[1672939384420,22.93,13.139,13.133,43.6512]
[1672939384739,22.89,13.134,13.124,22.93]
[1672939384949,22.89,13.134,13.125,10.0]
[1672939385159,10.0,13.133,13.125,10.0]
[1672939385365,10.0,13.133,13.125,10.071395]
[1672939385782,0.06559911,13.134,13.13,22.78]
[1672939385993,10.0,13.139,13.131,60.0]
[1672939386207,22.93,13.141,13.132,22.87]
[1672939386419,22.93,13.141,13.133,10.0]
[1672939386630,10.0,13.14,13.133,10.0]
[1672939388527,22.99373212,13.141,13.133,10.0]
[1672939388944,10.0,13.14,13.132,22.93768842]
[1672939389151,22.93,13.139,13.132,0.06768842]
[1672939389363,22.93,13.137,13.132,0.06768842]
[1672939389569,10.0,13.136,13.132,0.06768842]
[1672939389779,22.76,13.135,13.132,0.06768842]
[1672939389996,10.0,13.134,13.129,10.06048224]
[1672939390419,22.76,13.135,13.129,10.06048224]
[1672939392307,22.76,13.135,13.129,0.06048224]
[1672939398301,45.87,13.137,13.129,0.06048224]
[1672939398510,10.0,13.136,13.129,0.06048224]
[1672939402720,45.87,13.137,13.129,0.06048224]
[1672939406192,10.0,13.136,13.129,0.06048224]
[1672939413336,45.87,13.137,13.129,0.06048224]
[1672939413861,10.0,13.136,13.129,0.06048224]
[1672939423634,48.077,13.136,13.129,0.06048224]
[1672939423848,45.5,13.133,13.129,0.06048224]
[1672939424056,10.0,13.132,13.129,0.06048224]
[1672939424372,10.0,13.132,13.126,0.07034239]
[1672939427001,45.5,13.133,13.126,0.07034239]
[1672939427738,10.0,13.132,13.126,0.07034239]
[1672939432881,48.084,13.134,13.126,0.07034239]
[1672939436772,10.0,13.134,13.126,0.07034239]
[1672939436983,45.5310871,13.135,13.126,0.07034239]
[1672939437192,10.0,13.134,13.126,0.07034239]
[1672939438875,48.083,13.134,13.126,0.07034239]
[1672939439089,45.87,13.133,13.126,0.07034239]
[1672939439403,38.092,13.131,13.126,0.07034239]
[1672939439602,10.0,13.13,13.126,0.07034239]
[1672939440756,48.09,13.132,13.126,0.07034239]
[1672939441607,10.0,13.132,13.126,0.07034239]
[1672939442765,10.0,13.134,13.126,0.07034239]
[1672939442766,93.544,13.134,13.126,0.07034239]
[1672939445595,55.46,13.134,13.126,0.07034239]
[1672939446964,93.543,13.134,13.126,0.07034239]
[1672939448438,22.94,13.133,13.126,0.07034239]
[1672939448644,10.0,13.132,13.126,0.07034239]
[1672939449592,48.089,13.132,13.126,0.07034239]
[1672939451379,38.089,13.132,13.126,0.07034239]
[1672939454008,10.0,13.131,13.126,0.07034239]
[1672939455477,10.0,13.132,13.126,0.07034239]
[1672939455896,22.82,13.13,13.126,0.07034239]
[1672939456213,10.0,13.129,13.126,0.07034239]
[1672939456420,10.0,13.129,13.124,10.0]
[1672939456633,22.82,13.13,13.124,10.0]
[1672939456842,38.093,13.131,13.124,10.0]
[1672939457262,71.10065683,13.132,13.124,10.0]
[1672939459154,23.01065683,13.132,13.124,10.0]
[1672939459366,0.07065683,13.132,13.125,22.84]
[1672939459571,0.07065683,13.132,13.126,10.0]
[1672939460829,0.07065683,13.132,13.127,22.84]
[1672939461046,0.00065683,13.132,13.13,10.0]
[1672939461249,10.0,13.137,13.13,10.0]
[1672939461462,22.94,13.139,13.131,22.94]
[1672939461674,22.79,13.145,13.136,22.84]
[1672939462093,10.0,13.144,13.137,10.0]
[1672939464202,22.8554532,13.145,13.137,10.0]
[1672939465145,60.9084532,13.145,13.137,10.0]
[1672939467563,10.0,13.144,13.136,22.90770861]
[1672939467872,22.79,13.143,13.136,0.06770861]
[1672939468087,10.0,13.142,13.136,0.06770861]
[1672939468927,48.061,13.142,13.136,0.06770861]
[1672939469139,10.0,13.142,13.136,0.06770861]
[1672939470084,48.06,13.142,13.136,0.06770861]
[1672939470611,10.0,13.142,13.136,0.06770861]
[1672939471870,48.06,13.142,13.136,0.06770861]
[1672939472818,38.06,13.142,13.136,0.06770861]
[1672939473027,38.058,13.143,13.136,0.06770861]
[1672939474078,30.55,13.144,13.136,0.06770861]
[1672939474289,68.606,13.144,13.136,0.06770861]
[1672939474603,30.55,13.144,13.136,0.06770861]
[1672939474815,0.0654532,13.145,13.136,0.06770861]
[1672939475025,0.0654532,13.145,13.136,10.06770861]
[1672939475541,0.0654532,13.145,13.137,30.46]
[1672939475750,0.0654532,13.145,13.14,10.0]
[1672939483429,0.0654532,13.145,13.138,10.0]
[1672939484904,0.0654532,13.145,13.137,42.8455]
[1672939485113,0.0654532,13.145,13.138,10.0]
[1672939489628,0.0654532,13.145,13.137,42.8455]
[1672939489838,0.0654532,13.145,13.138,10.0]
[1672939493414,38.1174532,13.145,13.137,42.8455]
[1672939493625,10.0,13.144,13.137,42.8455]
[1672939493835,10.0,13.144,13.136,30.52770861]
[1672939494044,30.55,13.142,13.136,0.06770861]
[1672939494361,10.0,13.141,13.136,0.06770861]
[1672939498249,48.063,13.141,13.136,0.06770861]
[1672939499291,10.0,13.141,13.136,0.06770861]
[1672939499508,48.063,13.141,13.136,0.06770861]
[1672939500455,10.0,13.141,13.136,0.06770861]
[1672939500668,30.55,13.142,13.136,0.06770861]
[1672939502351,78.455,13.144,13.136,0.06770861]
[1672939504032,30.55,13.142,13.136,0.06770861]
[1672939504346,10.0,13.141,13.136,0.06770861]
[1672939508976,22.91,13.139,13.136,0.06770861]
[1672939509190,10.0,13.138,13.133,0.06088308]
[1672939509397,48.071,13.138,13.133,0.06088308]
[1672939513389,38.071,13.138,13.133,0.06088308]
[1672939513599,22.91,13.139,13.133,0.06088308]
[1672939513912,22.97884696,13.142,13.135,10.0]
[1672939516127,0.06884696,13.142,13.135,10.0]
[1672939518539,0.06884696,13.142,13.138,10.0]
[1672939518958,0.06884696,13.142,13.136,22.71]
[1672939519168,0.06884696,13.142,13.137,10.0]
[1672939523480,0.06884696,13.142,13.136,22.71]
[1672939523899,0.06884696,13.142,13.134,67.0812]
[1672939524110,0.06884696,13.142,13.135,10.0]
[1672939524321,10.06884696,13.142,13.135,10.0]
[1672939524532,0.06884696,13.142,13.135,10.0]
[1672939524737,0.06884696,13.142,13.136,22.91]
[1672939524947,0.06884696,13.142,13.137,10.0]
[1672939527891,0.06884696,13.142,13.137,32.89]
[1672939529990,0.06884696,13.142,13.137,10.0]
[1672939530207,0.06884696,13.142,13.14,22.91]
[1672939530415,0.0693493,13.146,13.141,10.0]
[1672939530628,10.0693493,13.146,13.141,10.0]
[1672939531995,0.0693493,13.146,13.141,10.0]
[1672939532304,0.0693493,13.146,13.14,64.897]
[1672939532520,0.0693493,13.146,13.141,10.0]
[1672939533466,0.0693493,13.146,13.14,64.897]
[1672939533682,0.0693493,13.146,13.141,10.0]
[1672939536092,0.0693493,13.146,13.14,64.897]
[1672939536407,0.0693493,13.146,13.141,10.0]
[1672939538089,0.0693493,13.146,13.14,64.897]
[1672939538296,0.0693493,13.146,13.141,10.0]
[1672939539245,0.0693493,13.146,13.14,64.897]
[1672939539456,0.0693493,13.146,13.141,10.0]
[1672939543873,0.0693493,13.146,13.14,22.91]
[1672939544187,0.0693493,13.146,13.139,0.06327189]
[1672939544820,10.0693493,13.146,13.139,0.06327189]
[1672939549029,48.1183493,13.146,13.139,0.06327189]